bitfinex-derivatives/quotes_BTCF0:USTF0_20241227
["timestamp","ask_amount","ask_price","bid_price","bid_amount"]
[1735307698062,0.001,96488.0,96487.0,0.0127811]
[1735307698463,0.001,96488.0,96487.0,0.03343786]
[1735307698962,0.15640911,96488.0,96487.0,0.03343786]
[1735307699177,0.15640911,96488.0,96487.0,0.0334938]
[1735307699365,0.15540911,96488.0,96487.0,0.0334938]
[1735307699668,0.15540911,96488.0,96487.0,0.0344938]
[1735307700063,0.15540911,96488.0,96487.0,0.0354938]
[1735307700272,0.12431268,96489.0,96488.0,0.051879]
[1735307700568,0.12431268,96489.0,96488.0,0.0853728]
[1735307701269,0.15540911,96492.0,96488.0,0.06476123]
[1735307701467,0.15540911,96492.0,96489.0,0.01288223]
[1735307701771,0.15540911,96492.0,96488.0,0.051879]
[1735307701772,0.15540911,96492.0,96490.0,0.01288223]
[1735307701961,0.15540911,96492.0,96491.0,0.01288223]
[1735307702568,0.05045286,96493.0,96491.0,0.01288223]
[1735307702756,0.05045286,96493.0,96492.0,0.01288223]
[1735307704965,0.05145286,96493.0,96492.0,0.01288223]
[1735307705663,0.05145286,96493.0,96492.0,0.0128538]
[1735307705864,0.05145286,96493.0,96488.0,0.051879]
[1735307706067,0.05145286,96493.0,96489.0,0.01285786]
[1735307706262,0.05145286,96493.0,96490.0,0.01285786]
[1735307706462,0.05145286,96493.0,96488.0,0.051879]
[1735307706463,0.05145286,96493.0,96491.0,0.01285786]
[1735307706776,0.05145286,96493.0,96488.0,0.051879]
[1735307706959,0.05045286,96492.0,96489.0,0.01285745]
[1735307707164,0.05045286,96492.0,96490.0,0.01285745]
[1735307707370,0.05045286,96492.0,96491.0,0.01285745]
[1735307708057,0.05045286,96492.0,96491.0,0.01285589]
[1735307708965,0.05145286,96492.0,96491.0,0.01285589]
[1735307709958,0.05345286,96492.0,96491.0,0.01285589]
[1735307710457,0.05445286,96492.0,96491.0,0.01285589]
[1735307711267,0.05445286,96492.0,96491.0,0.10285589]
[1735307711467,0.05445286,96492.0,96491.0,0.12343562]
[1735307711668,0.05445286,96492.0,96491.0,0.14916006]
[1735307711970,0.00155491,96510.0,96509.0,0.051868]
[1735307712167,0.00155491,96510.0,96509.0,0.06472389]
[1735307712561,0.00155491,96510.0,96509.0,0.15472389]
[1735307712762,0.00155491,96510.0,96509.0,0.15474412]
[1735307713567,0.00355491,96510.0,96509.0,0.15474412]
[1735307714165,0.00955491,96510.0,96509.0,0.15569635]
[1735307714563,0.00955491,96510.0,96509.0,0.15569275]
[1735307716265,0.008,96510.0,96509.0,0.15569275]
[1735307716468,0.008,96510.0,96509.0,0.15570513]
[1735307717165,0.008,96510.0,96509.0,0.15571951]
[1735307720078,0.008,96510.0,96509.0,0.01385151]
[1735307720275,0.101076,96510.0,96509.0,0.001]
[1735307721367,0.008,96510.0,96509.0,0.001]
[1735307721881,0.051873,96499.0,96491.0,0.23807389]
[1735307722070,0.0323,96498.0,96492.0,0.01280036]
[1735307722272,0.0323,96498.0,96493.0,0.01280036]
[1735307722571,0.0323,96498.0,96491.0,0.051877]
[1735307723367,0.0333,96498.0,96491.0,0.051877]
[1735307723573,0.0333,96498.0,96492.0,0.0127627]
[1735307723776,0.0333,96498.0,96491.0,0.051877]
[1735307724075,0.12408779,96496.0,96492.0,0.01276271]
[1735307724283,0.12408779,96496.0,96491.0,0.051877]
[1735307724484,0.12408779,96496.0,96492.0,0.01276267]
[1735307724777,0.12408779,96496.0,96493.0,0.01276267]
[1735307724973,0.12408779,96495.0,96486.0,0.09]
[1735307725172,0.15578779,96495.0,96487.0,0.01276246]
[1735307725376,0.15578779,96495.0,96486.0,0.09]
[1735307725377,0.15578779,96495.0,96488.0,0.01276246]
[1735307725679,0.15578779,96495.0,96489.0,0.01276246]
[1735307725880,0.15578779,96495.0,96490.0,0.01276246]
[1735307726085,0.051877,96492.0,96486.0,0.09]
[1735307726268,0.051877,96492.0,96486.0,0.091]
[1735307726580,0.09310071,96490.0,96486.0,0.091]
[1735307726777,0.09310071,96490.0,96486.0,0.14288]
[1735307727079,0.09310071,96490.0,96486.0,0.14188]
[1735307727582,0.09310071,96490.0,96486.0,0.14288]
[1735307727877,0.12408779,96488.0,96486.0,0.14288]
[1735307729374,0.12408779,96487.0,96486.0,0.14288]
[1735307729582,0.12408779,96487.0,96486.0,0.14388]
[1735307730180,0.12408779,96487.0,96486.0,0.14288]
[1735307730375,0.12408779,96487.0,96486.0,0.14388]
[1735307730569,0.12408779,96490.0,96489.0,0.051878]
[1735307731886,0.12408779,96490.0,96489.0,0.06466925]
[1735307732077,0.12408779,96490.0,96489.0,0.06466863]
[1735307732278,0.12408779,96490.0,96489.0,0.06465319]
[1735307732679,0.12408779,96490.0,96489.0,0.064654]
[1735307733583,0.12408779,96493.0,96486.0,0.09]
[1735307733777,0.12408779,96493.0,96483.0,0.01022908]
[1735307733778,0.12408779,96493.0,96487.0,0.01277367]
[1735307733973,0.12408779,96493.0,96482.0,0.051882]
[1735307734289,0.10318829,96492.0,96483.0,0.09]
[1735307734585,0.051878,96490.0,96483.0,0.09]
[1735307734973,0.12408779,96488.0,96486.0,0.001]
[1735307735576,0.12408779,96488.0,96486.0,0.002]
[1735307735783,0.12408779,96488.0,96486.0,0.001]
[1735307736085,0.12408779,96488.0,96483.0,0.091]
[1735307736282,0.12408779,96488.0,96486.0,0.001]
[1735307736974,0.12408779,96488.0,96486.0,0.002]
[1735307737284,0.12408779,96488.0,96486.0,0.001]
[1735307737472,0.12408779,96490.0,96486.0,0.001]
[1735307738786,0.12408779,96489.0,96488.0,0.051879]
[1735307739078,0.18622523,96502.0,96501.0,0.051872]
[1735307739677,0.18622523,96502.0,96501.0,0.15465804]
[1735307740089,0.0930906,96502.0,96501.0,0.15465804]
[1735307741186,0.0930906,96502.0,96501.0,0.16503437]
[1735307741390,0.051864,96516.0,96507.0,0.051868]
[1735307741583,0.051865,96515.0,96507.0,0.051868]
[1735307742687,0.051865,96515.0,96499.0,0.051873]
[1735307742688,0.05187,96506.0,96499.0,0.051873]
[1735307744781,0.05187,96505.0,96493.0,0.051876]
[1735307744985,0.05187,96505.0,96495.0,0.051875]
[1735307745286,0.0328,96504.0,96499.0,0.051873]
[1735307745683,0.0333,96503.0,96499.0,0.051873]
[1735307747589,0.0333,96503.0,96492.0,0.01012519]
[1735307747793,0.051871,96502.0,96493.0,0.0646173]
[1735307747994,0.051871,96502.0,96494.0,0.0127413]
[1735307748179,0.051871,96502.0,96495.0,0.0127413]
[1735307748385,0.051871,96502.0,96496.0,0.0127525]
[1735307748585,0.051871,96502.0,96493.0,0.051876]
[1735307748795,0.051871,96502.0,96494.0,0.01275241]
[1735307748983,0.051871,96502.0,96495.0,0.01275224]
[1735307749189,0.053871,96502.0,96496.0,0.01275224]
[1735307749488,0.051874,96497.0,96486.0,0.01060379]
[1735307749694,0.051874,96497.0,96484.0,0.18619689]
[1735307749695,0.051876,96494.0,96487.0,0.01275281]
[1735307749885,0.051876,96494.0,96489.0,0.051878]
[1735307750086,0.051876,96494.0,96490.0,0.15463081]
[1735307750291,0.051876,96494.0,96491.0,0.01275579]
[1735307750499,0.051876,96494.0,96492.0,0.01275579]
[1735307750686,0.051876,96494.0,96490.0,0.141878]
[1735307750889,0.10318829,96500.0,96485.0,0.18619689]
[1735307751088,0.051879,96488.0,96486.0,0.0127462]
[1735307751297,0.051879,96488.0,96487.0,0.0127462]
[1735307751490,0.051879,96488.0,96487.0,0.1027462]
[1735307751795,0.10318829,96500.0,96487.0,0.0127462]
[1735307751796,0.051876,96495.0,96487.0,0.0127462]
[1735307751997,0.051876,96495.0,96488.0,0.0127462]
[1735307752188,0.051876,96495.0,96489.0,0.0127462]
[1735307752388,0.051876,96495.0,96487.0,0.001]
[1735307752583,0.051876,96495.0,96488.0,0.01275554]
[1735307752786,0.051876,96494.0,96489.0,0.01275554]
[1735307752992,0.051876,96494.0,96487.0,0.002]
[1735307753196,0.051876,96494.0,96488.0,0.01275556]
[1735307753394,0.051876,96494.0,96489.0,0.01275556]
[1735307753598,0.051876,96494.0,96487.0,0.002]
[1735307753796,0.051876,96494.0,96488.0,0.01278445]
[1735307753997,0.051876,96494.0,96489.0,0.01278445]
[1735307754201,0.051876,96494.0,96487.0,0.001]
[1735307754499,0.051876,96494.0,96488.0,0.01278421]
[1735307754700,0.051876,96494.0,96489.0,0.01278421]
[1735307754898,0.051878,96491.0,96490.0,0.01277507]
[1735307755887,0.051878,96491.0,96488.0,0.001]
[1735307756092,0.18622523,96499.0,96489.0,0.01276178]
[1735307756304,0.18622523,96499.0,96497.0,0.051874]
[1735307756691,0.051868,96508.0,96497.0,0.051874]
[1735307756896,0.051868,96508.0,96498.0,0.051873]
[1735307757304,0.051868,96508.0,96499.0,0.01277827]
[1735307757602,0.051868,96508.0,96500.0,0.01277827]
[1735307757803,0.051868,96508.0,96501.0,0.01277827]
[1735307758003,0.051868,96508.0,96498.0,0.051873]
[1735307758189,0.051868,96508.0,96499.0,0.01276578]
[1735307758389,0.051868,96508.0,96500.0,0.01276578]
[1735307758590,0.051868,96508.0,96501.0,0.01276578]
[1735307758900,0.003,96508.0,96503.0,0.051871]
[1735307759405,0.005,96508.0,96504.0,0.01276839]
[1735307759609,0.007,96508.0,96503.0,0.051871]
[1735307759799,0.007,96508.0,96504.0,0.01276704]
[1735307759994,0.002,96508.0,96503.0,0.051871]
[1735307760201,0.008,96508.0,96503.0,0.051871]
[1735307760399,0.008,96508.0,96504.0,0.01274703]
[1735307760604,0.008,96508.0,96505.0,0.01274703]
[1735307760804,0.008,96508.0,96503.0,0.051871]
[1735307761006,0.008,96508.0,96504.0,0.01274667]
[1735307761202,0.008,96508.0,96503.0,0.051871]
[1735307761808,0.009,96508.0,96505.0,0.001]
[1735307761999,0.007,96508.0,96505.0,0.001]
[1735307762308,0.009,96508.0,96505.0,0.001]
[1735307762499,0.008,96508.0,96503.0,0.051871]
[1735307763006,0.008,96508.0,96505.0,0.001]
[1735307763007,0.002,96508.0,96505.0,0.001]
[1735307763203,0.009,96508.0,96505.0,0.001]
[1735307763405,0.051869,96507.0,96505.0,0.001]
[1735307763812,0.009,96508.0,96505.0,0.001]
[1735307764109,0.009,96508.0,96506.0,0.051869]
[1735307764308,0.007,96508.0,96507.0,0.01274977]
[1735307764611,0.009,96508.0,96507.0,0.01274977]
[1735307764813,0.008,96508.0,96507.0,0.13724977]
[1735307765510,0.009,96508.0,96507.0,0.13824977]
[1735307768010,0.009,96508.0,96507.0,0.04824977]
[1735307770105,0.009,96508.0,96507.0,0.0355]
[1735307770310,0.009,96508.0,96507.0,0.04828063]
[1735307770812,0.009,96508.0,96507.0,0.04827349]
[1735307772301,0.009,96508.0,96507.0,0.0355]
[1735307772613,0.009,96508.0,96507.0,0.0482705]
[1735307772909,0.009,96508.0,96507.0,0.0355]
[1735307773107,0.009,96508.0,96507.0,0.13826828]
[1735307774012,0.009,96508.0,96507.0,0.1255]
[1735307774515,0.002,96508.0,96507.0,0.1245]
[1735307774809,0.002,96508.0,96507.0,0.1285]
[1735307775209,0.002,96508.0,96507.0,0.1245]
[1735307775409,0.1553195,96516.0,96507.0,0.1245]
[1735307775610,0.1553195,96516.0,96507.0,0.1265]
[1735307775913,0.1553195,96516.0,96508.0,0.051868]
[1735307776518,0.1553195,96516.0,96508.0,0.06462796]
[1735307776709,0.1553195,96516.0,96508.0,0.051868]
[1735307777510,0.1553195,96516.0,96509.0,0.051867]
[1735307778217,0.1553195,96517.0,96509.0,0.051867]
[1735307778811,0.001,96516.0,96509.0,0.051867]
[1735307779317,0.1563195,96517.0,96509.0,0.051867]
[1735307779622,0.1553195,96516.0,96509.0,0.051867]
[1735307779819,0.1553195,96516.0,96510.0,0.01276964]
[1735307780114,0.051866,96512.0,96501.0,0.09]
[1735307780316,0.0334,96511.0,96504.0,0.05187]
[1735307780515,0.0334,96511.0,96505.0,0.01277006]
[1735307780718,0.0348,96510.0,96504.0,0.05187]
[1735307781304,0.0348,96510.0,96505.0,0.05187]
[1735307781511,0.0348,96510.0,96508.0,0.051868]
[1735307782220,0.0358,96510.0,96508.0,0.051868]
[1735307782611,0.0358,96510.0,96509.0,0.01275425]
[1735307782811,0.0358,96510.0,96508.0,0.051868]
[1735307783420,0.0358,96510.0,96509.0,0.0127545]
[1735307784014,0.0348,96510.0,96509.0,0.0127545]
[1735307784217,0.0358,96510.0,96509.0,0.0127545]
[1735307785518,0.0358,96510.0,96502.0,0.051871]
[1735307785816,0.051868,96509.0,96503.0,0.01275718]
[1735307786024,0.051868,96509.0,96502.0,0.051871]
[1735307786025,0.051868,96509.0,96504.0,0.01275718]
[1735307786220,0.051868,96509.0,96505.0,0.01275718]
[1735307786420,0.051868,96509.0,96506.0,0.01275718]
[1735307786623,0.051868,96509.0,96507.0,0.01275718]
[1735307786929,0.051868,96509.0,96508.0,0.01275718]
[1735307787227,0.0358,96510.0,96508.0,0.01275718]
[1735307787423,0.0358,96510.0,96509.0,0.01275718]
[1735307787626,0.0348,96510.0,96509.0,0.01275718]
[1735307787817,0.0368,96510.0,96509.0,0.01275718]
[1735307788421,0.0368,96510.0,96509.0,0.01307486]
[1735307788622,0.0358,96510.0,96509.0,0.01307486]
[1735307790627,0.10443283,96513.0,96509.0,0.0601377]
[1735307790830,0.10443283,96513.0,96510.0,0.0601377]
[1735307791132,0.10443283,96513.0,96512.0,0.141866]
[1735307791323,0.10443283,96513.0,96512.0,0.2020037]
[1735307791528,0.10443283,96513.0,96512.0,0.20198253]
[1735307791728,0.15556355,96516.0,96515.0,0.051864]
[1735307791924,0.15556355,96516.0,96515.0,0.08575289]
[1735307793323,0.15556355,96529.0,96520.0,0.051862]
[1735307793529,0.15556355,96529.0,96521.0,0.03388889]
[1735307793732,0.15556355,96529.0,96522.0,0.01303419]
[1735307794030,0.15556355,96529.0,96523.0,0.01303419]
[1735307794229,0.15556355,96529.0,96525.0,0.18652315]
[1735307794425,0.15556355,96529.0,96526.0,0.01303419]
[1735307794733,0.15556355,96529.0,96526.0,0.01302422]
[1735307795125,0.00355469,96527.0,96526.0,0.01302422]
[1735307795625,0.00155469,96527.0,96526.0,0.01302422]
[1735307795829,0.00555469,96527.0,96526.0,0.10302422]
[1735307796029,0.00555469,96527.0,96526.0,0.13342422]
[1735307796230,0.00655469,96527.0,96526.0,0.13342422]
[1735307796826,0.00655469,96527.0,96526.0,0.1134407]
[1735307797633,0.00655469,96527.0,96526.0,0.11342521]
[1735307797835,0.00255469,96527.0,96526.0,0.11342521]
[1735307798133,0.00655469,96527.0,96526.0,0.11342521]
[1735307798528,0.005,96527.0,96526.0,0.13419852]
[1735307798724,0.005,96527.0,96526.0,0.19889852]
[1735307800431,0.005,96527.0,96526.0,0.1989515]
[1735307800826,0.005,96527.0,96526.0,0.1342515]
[1735307802929,0.005,96527.0,96526.0,0.1342175]
[1735307803134,0.005,96527.0,96526.0,0.11341687]
[1735307803531,0.005,96527.0,96526.0,0.11341853]
[1735307808630,0.005,96527.0,96526.0,0.02341853]
[1735307808944,0.005,96527.0,96526.0,0.01041648]
[1735307809239,0.005,96527.0,96526.0,0.09]
[1735307810339,0.005,96527.0,96526.0,0.10300484]
[1735307815632,0.15556355,96537.0,96527.0,0.051858]
[1735307815836,0.15556355,96536.0,96535.0,0.051854]
[1735307816029,0.15556355,96536.0,96535.0,0.08572339]
[1735307816232,0.15556355,96536.0,96535.0,0.17572339]
[1735307817148,0.15556355,96553.0,96548.0,0.051847]
[1735307817332,0.15556355,96553.0,96548.0,0.06487369]
[1735307817734,0.15556355,96553.0,96548.0,0.09]
[1735307818036,0.15556355,96553.0,96548.0,0.141847]
[1735307818543,0.0336,96549.0,96548.0,0.142847]
[1735307818741,0.0346,96549.0,96548.0,0.142847]
[1735307820038,0.002,96549.0,96548.0,0.16354075]
[1735307820438,0.002,96549.0,96548.0,0.17400488]
[1735307820942,0.00155412,96562.0,96555.0,0.051843]
[1735307821143,0.00155412,96562.0,96561.0,0.05184]
[1735307821333,0.15556355,96564.0,96563.0,0.051839]
[1735307821531,0.15556355,96564.0,96563.0,0.07251839]
[1735307821937,0.15556355,96564.0,96563.0,0.16251839]
[1735307822340,0.00064,96582.0,96563.0,0.11067939]
[1735307822642,0.083131,96579.0,96563.0,0.09]
[1735307822839,0.083131,96579.0,96573.0,0.051833]
[1735307823035,0.083131,96579.0,96569.0,0.10318829]
[1735307823239,0.083131,96579.0,96577.0,0.051831]
[1735307823639,0.0313,96579.0,96577.0,0.051831]
[1735307831544,0.1,96600.0,96577.0,0.051831]
[1735307831545,0.1,96600.0,96586.0,0.051826]
[1735307831743,0.1,96600.0,96577.0,0.051831]
[1735307831744,0.1,96600.0,96599.0,0.051819]
[1735307833859,0.1,96600.0,96599.0,0.141819]
[1735307834356,0.1,96600.0,96599.0,0.147819]
[1735307834746,0.1,96600.0,96599.0,0.143819]
[1735307835054,0.1,96600.0,96599.0,0.142819]
[1735307835651,0.0319,96609.0,96602.0,0.051818]
[1735307836356,0.0319,96609.0,96602.0,0.06456472]
[1735307836953,0.0319,96609.0,96602.0,0.06556472]
[1735307837155,0.0319,96609.0,96602.0,0.052818]
[1735307837348,0.0319,96609.0,96602.0,0.06558508]
[1735307837745,0.0631,96615.0,96598.0,0.01017383]
[1735307837746,0.032,96615.0,96598.0,0.01017383]
[1735307838048,0.114703,96629.0,96606.0,0.051816]
[1735307838363,0.031,96628.0,96606.0,0.051816]
[1735307838657,0.031,96628.0,96606.0,0.121816]
[1735307839550,0.031,96628.0,96606.0,0.13459733]
[1735307839551,0.04157983,96628.0,96606.0,0.13459733]
[1735307839946,0.10318829,96620.0,96606.0,0.06459733]
[1735307840151,0.0066,96607.0,96606.0,0.06559733]
[1735307840351,0.0066,96607.0,96606.0,0.0655922]
[1735307840658,0.0066,96607.0,96606.0,0.052816]
[1735307841151,0.0066,96607.0,96606.0,0.06557797]
[1735307841356,0.0066,96607.0,96606.0,0.06558151]
[1735307841765,0.0066,96607.0,96606.0,0.06458151]
[1735307841965,0.0076,96607.0,96606.0,0.052816]
[1735307842154,0.0076,96607.0,96606.0,0.06557362]
[1735307843268,0.0076,96607.0,96606.0,0.06557695]
[1735307844452,0.0076,96607.0,96606.0,0.13555522]
[1735307846952,0.0076,96607.0,96606.0,0.15593757]
[1735307848660,0.0076,96607.0,96606.0,0.1558957]
[1735307849261,0.0076,96607.0,96606.0,0.15589544]
[1735307850257,1e-06,96607.0,96606.0,0.15589544]
[1735307851458,1e-06,96607.0,96606.0,0.19729692]
[1735307851867,1e-06,96607.0,96606.0,0.19729661]
[1735307852056,1e-06,96607.0,96606.0,0.42995212]
[1735307852256,1e-06,96607.0,96606.0,0.42984274]
[1735307852460,1e-06,96607.0,96606.0,0.40448222]
[1735307853163,0.031,96628.0,96606.0,0.15478468]
[1735307853366,0.031,96628.0,96627.0,0.051804]
[1735307853666,0.031,96628.0,96627.0,0.08477268]
[1735307853858,0.031,96628.0,96627.0,0.15477268]
[1735307854658,0.031,96628.0,96627.0,0.08477268]
[1735307854859,0.0643,96628.0,96627.0,0.06448426]
[1735307855162,0.0643,96628.0,96627.0,0.01255203]
[1735307855364,0.0643,96628.0,96609.0,0.31066657]
[1735307855365,0.051807,96622.0,96609.0,0.31066657]
[1735307855563,0.051813,96610.0,96609.0,0.24662016]
[1735307855962,0.00064,96622.0,96619.0,0.051809]
[1735307856169,0.051805,96626.0,96619.0,0.051809]
[1735307856469,0.051806,96625.0,96613.0,0.051812]
[1735307856670,0.007,96622.0,96611.0,0.07]
[1735307856970,0.007,96622.0,96609.0,0.001]
[1735307857173,0.051811,96615.0,96609.0,0.001]
[1735307857558,0.051811,96615.0,96606.0,0.00155258]
[1735307857764,0.051811,96615.0,96607.0,0.051815]
[1735307857970,0.09292565,96610.0,96607.0,0.051815]
[1735307858169,0.09292565,96610.0,96609.0,0.001]
[1735307859061,0.14473865,96610.0,96609.0,0.001]
[1735307859369,0.051813,96610.0,96609.0,0.001]
[1735307859871,0.051813,96610.0,96606.0,0.00255258]
[1735307860374,0.007,96610.0,96609.0,0.001]
[1735307861365,0.18612511,96611.0,96606.0,0.00155258]
[1735307861673,0.007,96610.0,96606.0,0.00255258]
[1735307862067,0.05740144,96610.0,96606.0,0.00255258]
[1735307862974,0.10921544,96610.0,96606.0,0.00255258]
[1735307863274,0.05040144,96609.0,96606.0,0.00255258]
[1735307863469,0.05040144,96609.0,96606.0,0.00155258]
[1735307864068,0.10221544,96609.0,96606.0,0.00155258]
[1735307864284,0.10221544,96609.0,96606.0,0.00255258]
[1735307864474,0.18613142,96608.0,96606.0,0.00255258]
[1735307864672,0.18613142,96608.0,96606.0,0.00155258]
[1735307864879,0.18613142,96608.0,96606.0,0.00255258]
[1735307865671,0.15510163,96607.0,96606.0,0.00255258]
[1735307866370,0.15510163,96607.0,96606.0,0.00155258]
[1735307866574,0.15510163,96607.0,96606.0,0.00255258]
[1735307867073,0.16210163,96607.0,96606.0,0.00255258]
[1735307867276,0.007,96607.0,96606.0,0.00255258]
[1735307867868,0.007,96607.0,96606.0,0.05436758]
[1735307868085,0.007,96607.0,96606.0,0.00255258]
[1735307868964,0.33806024,96607.0,96586.0,0.0958]
[1735307869171,0.051823,96592.0,96587.0,0.01210499]
[1735307869373,0.051823,96592.0,96588.0,0.07]
[1735307869569,0.05182,96599.0,96589.0,0.051825]
[1735307869773,0.0279,96607.0,96588.0,0.07]
[1735307869974,0.3279,96607.0,96588.0,0.07]
[1735307870170,0.051821,96596.0,96588.0,0.07]
[1735307870376,0.051822,96595.0,96588.0,0.07]
[1735307870583,0.051822,96594.0,96588.0,0.07]
[1735307871083,0.15506573,96598.0,96588.0,0.07]
[1735307871277,0.051824,96591.0,96588.0,0.07]
[1735307871795,0.051824,96590.0,96588.0,0.07]
[1735307872681,0.051824,96590.0,96586.0,0.0958]
[1735307872883,0.051825,96588.0,96586.0,0.0958]
[1735307873076,0.051825,96588.0,96587.0,0.07]
[1735307873469,0.351825,96588.0,96587.0,0.07]
[1735307873672,0.351825,96588.0,96546.0,0.37279988]
[1735307873673,0.051835,96569.0,96561.0,0.0943]
[1735307875073,0.051835,96569.0,96568.0,0.00355311]
[1735307875967,0.051835,96569.0,96568.0,0.002]
[1735307876173,0.051835,96569.0,96568.0,0.005]
[1735307881379,0.17566221,96573.0,96568.0,0.005]
[1735307881778,0.12382821,96573.0,96568.0,0.005]
[1735307882177,0.12382821,96571.0,96568.0,0.005]
[1735307883080,0.051835,96570.0,96568.0,0.005]
[1735307883289,0.051835,96570.0,96568.0,0.002]
[1735307883484,0.051835,96570.0,96568.0,0.005]
[1735307884186,0.051843,96555.0,96546.0,0.00155355]
[1735307884488,0.051844,96554.0,96547.0,0.0333]
[1735307884686,0.051846,96550.0,96547.0,0.0333]
[1735307884981,0.051847,96549.0,96547.0,0.0333]
[1735307885184,0.10318829,96560.0,96528.0,0.0333]
[1735307885375,0.10318829,96540.0,96528.0,0.0333]
[1735307885575,0.051855,96534.0,96528.0,0.0333]
[1735307886080,0.051856,96530.0,96528.0,0.0333]
[1735307886581,0.051856,96530.0,96528.0,0.0363]
[1735307887289,0.10318829,96550.0,96528.0,0.0373]
[1735307887588,0.09279042,96534.0,96529.0,0.0323]
[1735307887790,0.051856,96531.0,96529.0,0.0639]
[1735307888287,0.09279042,96534.0,96507.0,0.051869]
[1735307888593,0.051861,96521.0,96511.0,0.0321]
[1735307890288,0.051861,96521.0,96511.0,0.0371]
[1735307890489,0.052861,96521.0,96511.0,0.0461]
[1735307891983,0.001,96521.0,96511.0,0.0461]
[1735307892374,0.051866,96514.0,96511.0,0.0461]
[1735307893485,0.051866,96514.0,96511.0,0.0371]
[1735307893687,0.051866,96514.0,96511.0,0.0401]
[1735307894082,0.01060948,96525.0,96511.0,0.0371]
[1735307894392,0.051866,96512.0,96511.0,0.0371]
[1735307895489,0.051866,96512.0,96511.0,0.0351]
[1735307895795,0.051866,96512.0,96511.0,0.0371]
[1735307896288,0.051866,96512.0,96511.0,0.0351]
[1735307896496,0.051866,96512.0,96511.0,0.0371]
[1735307898186,0.051866,96512.0,96511.0,0.005]
[1735307899692,0.351866,96512.0,96500.0,0.1]
[1735307899899,0.051878,96490.0,96489.0,0.0311]
[1735307900395,0.10318829,96499.0,96471.0,0.0313]
[1735307900596,0.051887,96474.0,96472.0,0.0311]
[1735307900898,0.051893,96462.0,96461.0,0.0302]
[1735307901280,0.10318829,96471.0,96458.0,0.0303]
[1735307901481,0.051895,96458.0,96457.0,0.30867765]
[1735307901688,0.40318829,96471.0,96447.0,0.0302]
[1735307901983,0.0519,96449.0,96447.0,0.0302]
[1735307904500,0.0529,96449.0,96447.0,0.0412]
[1735307906600,0.0529,96449.0,96447.0,0.011]
[1735307907101,0.0529,96449.0,96434.0,0.00155536]
[1735307907292,0.10318829,96444.0,96432.0,0.0304]
[1735307907499,0.051908,96434.0,96432.0,0.0304]
[1735307909103,0.052908,96434.0,96432.0,0.0304]
[1735307915415,0.001,96434.0,96433.0,0.01199477]
[1735307915604,0.001,96434.0,96433.0,0.04379477]
[1735307915911,0.10318829,96450.0,96435.0,0.051907]
[1735307916115,0.051901,96448.0,96436.0,0.01199477]
[1735307916306,0.051901,96448.0,96437.0,0.01199477]
[1735307916506,0.051901,96448.0,96438.0,0.01199477]
[1735307916706,0.051901,96448.0,96439.0,0.01199477]
[1735307916906,0.051901,96448.0,96440.0,0.04439477]
[1735307917213,0.051901,96448.0,96441.0,0.01204033]
[1735307917400,0.051901,96448.0,96442.0,0.01204033]
[1735307917606,0.051901,96448.0,96440.0,0.0324]
[1735307917809,0.051901,96448.0,96441.0,0.01204416]
[1735307918013,0.10318829,96450.0,96442.0,0.01204416]
[1735307918213,0.051902,96445.0,96440.0,0.0324]
[1735307918412,0.051902,96445.0,96441.0,0.01204415]
[1735307918712,0.051902,96445.0,96440.0,0.0324]
[1735307918911,0.051902,96445.0,96441.0,0.0120489]
[1735307919214,0.051902,96445.0,96442.0,0.01204969]
[1735307919421,0.051902,96445.0,96443.0,0.01205377]
[1735307919717,0.051902,96445.0,96440.0,0.0324]
[1735307919918,0.051902,96445.0,96441.0,0.01205397]
[1735307920111,0.051902,96445.0,96440.0,0.0324]
[1735307920112,0.052902,96445.0,96442.0,0.01205397]
[1735307920316,0.052902,96445.0,96443.0,0.01205397]
[1735307920514,0.052902,96445.0,96444.0,0.01205397]
[1735307921014,0.055902,96445.0,96444.0,0.01205397]
[1735307921217,0.004,96445.0,96440.0,0.0324]
[1735307921519,0.051903,96443.0,96441.0,0.01206722]
[1735307921712,0.051903,96443.0,96442.0,0.01206722]
[1735307922716,0.005,96445.0,96442.0,0.01206722]
[1735307922918,0.005,96445.0,96443.0,0.01206722]
[1735307923116,0.005,96445.0,96440.0,0.0324]
[1735307923117,0.005,96445.0,96444.0,0.01206722]
[1735307924207,0.001,96445.0,96444.0,0.01206722]
[1735307924515,0.002,96445.0,96444.0,0.03141568]
[1735307925010,0.007,96445.0,96444.0,0.03141568]
[1735307926210,0.005,96445.0,96444.0,0.03141568]
[1735307926516,0.007,96445.0,96444.0,0.03141568]
[1735307927116,0.007,96445.0,96444.0,0.01206722]
[1735307927510,0.007,96445.0,96444.0,0.0311371]
[1735307930013,0.007,96445.0,96444.0,0.01206722]
[1735307931017,0.007,96445.0,96444.0,0.0309683]
[1735307935213,0.007,96445.0,96444.0,0.03073668]
[1735307935920,0.007,96445.0,96444.0,0.03074107]
[1735307936123,0.056902,96445.0,96444.0,0.03074107]
[1735307936324,0.058902,96445.0,96444.0,0.03074107]
[1735307937119,0.058902,96445.0,96444.0,0.01182349]
[1735307938325,0.058902,96445.0,96444.0,0.01180544]
[1735307939009,0.058902,96445.0,96444.0,0.03071347]
[1735307940925,0.058902,96445.0,96444.0,0.01181835]
[1735307942725,0.056902,96445.0,96444.0,0.01181835]
[1735307943026,0.007,96445.0,96444.0,0.01181835]
[1735307943421,0.007,96445.0,96444.0,0.01160349]
[1735307945027,0.007,96445.0,96444.0,0.03073819]
[1735307946520,0.007,96445.0,96444.0,0.03109866]
[1735307946717,0.16206573,96445.0,96444.0,0.03109866]
[1735307949234,0.16206573,96445.0,96444.0,0.01196102]
[1735307949429,0.16206573,96445.0,96443.0,0.01043353]
[1735307949640,0.0574781,96445.0,96444.0,0.01194594]
[1735307950026,0.1093801,96445.0,96444.0,0.01194594]
[1735307950437,0.051905,96441.0,96436.0,0.24600471]